Cogmind - Beta 15 --- EXPLORER MODE // 2025.08.01 @ 22:05:21 Player: cogger Result: Destroyed by G-47 Trooper with Particle Gun Performance ------------- Evolutions (2) 1000 Regions Visited (3) 600 Robots Destroyed (11) 55 Value Destroyed (449) 449 Prototype IDs (0) 0 Alien Tech Used (0) 0 Bonus (0) 0 TOTAL SCORE: 2104 Bonus ------- None Cogmind --------- Core Integrity 0/550 Matter 300/300 Energy 100/100 System Corruption 0% Temperature Cool (18) Movement Core (50) Location -8/Materials Parts ------- > --- POWER (2) -------- (None) > --- PROPULSION (4) --- (None) > --- UTILITY (4) ------ Targeting Computer > --- WEAPON (2) ------- (None) > --- INVENTORY (5) ---- Improved Ion Engine Aluminum Leg Aluminum Leg Improved Heat Sink Peak State ------------ > --- POWER ------------ Light Ion Engine Improved Ion Engine > --- PROPULSION ------- Aluminum Leg Flight Unit VTOL Module Surge Thruster > --- UTILITY ---------- Targeting Computer Core Shielding Power Shielding > --- WEAPON ----------- Particle Gun Light Assault Rifle > --- INVENTORY -------- Light Ion Engine Aluminum Leg Aluminum Leg Flight Unit Improved Heat Sink [Rating: 16] Favorites ----------- Power Light Ion Engine Engine Light Ion Engine Power Core Light Nuclear Core Propulsion Flight Unit Leg Aluminum Leg Flight Unit Flight Unit Utility Targeting Computer Processor Targeting Computer Protection Power Shielding Weapon Light Assault Rifle Energy Gun Particle Gun Ballistic Gun Light Assault Rifle Launcher Subdweller Shrapnel Launcher Build | -11 -10 -10 -8 ------- Run | Yrd Mat Sub Mat Slots Evolved 5 | . 1 . 4 Power 1 | . . . 1 Propulsion 2 | . . . 2 Utility 2 | . 1 . 1 Weapon . | . . . . Parts Attached 25 | 7 5 4 9 Power 6 | 1 . 3 2 Engine 5 | 1 . 2 2 Core 1 | . . 1 . Reactor . | . . . . Propulsion 9 | 2 2 . 5 Treads . | . . . . Leg 5 | 2 . . 3 Wheel . | . . . . Hover . | . . . . Flight 4 | . 2 . 2 Utility 4 | 2 2 . . Device . | . . . . Storage . | . . . . Processor 1 | 1 . . . Hackware . | . . . . Protection 3 | 1 2 . . Artifact . | . . . . Weapon 6 | 2 1 1 2 Energy Gun 2 | . . . 2 Energy Cannon . | . . . . Ballistic Gun 3 | 2 1 . . Ballistic Cannon . | . . . . Launcher 1 | . . 1 . Special Weapon . | . . . . Impact Weapon . | . . . . Slashing Weapon . | . . . . Piercing Weapon . | . . . . Special Melee Weapon . | . . . . Unidentified Prototypes . | . . . . Parts Lost 11 | . . . 11 Power 3 | . . . 3 Propulsion 3 | . . . 3 Utility 2 | . . . 2 Weapon 3 | . . . 3 Highest Loss Streak 9 | . . . 9 To Critical Strikes . | . . . . Average Backups 4 | 1 4 4 4 Power . | . 1 1 . Propulsion 1 | . . 1 2 Utility 1 | . 1 1 1 Weapon . | . 1 . . Tool/Special . | . . . . Unused Backups 3 | . . 2 1 Power . | . . . . Propulsion . | . . . . Utility 2 | . . 1 1 Weapon 1 | . . 1 . Tool/Special . | . . . . Average Slot Usage (%) 86 | . 93 100 69 Engine 11 | . 12 12 11 Leg 2 | . 5 . 2 Flight 20 | . 19 25 17 Processor 10 | . 12 12 8 Protection 19 | . 18 25 15 Energy Gun 1 | . . . 4 Ballistic Gun 18 | . 25 24 8 Peak Build Rating 16 | 7 8 10 16 Average Rating 8 | 3 7 8 10 On Entrance 5 | . 7 8 8 Naked Turns . | . . . . Heaviest Build 16 | 9 10 10 16 Greatest Support 30 | 20 20 8 30 Greatest Overweight (x) 3 | . . 1 3 Average Overweight (x) . | . . . . Largest Inventory Capacity 5 | 5 5 5 5 Average Capacity 5 | 5 5 5 5 Most Carried 5 | 4 5 5 5 Average Carried 4 | 1 4 4 4 Final Capacity 5 | 5 5 5 5 Final Carried 5 | 4 5 4 4 Class Distribution -------------------- 83% | Hacker-Mutant 16% | Hacker-Sprinter Dominant Class ---------------- Hacker-Mutant | -10/Materials Hacker-Mutant | -10/Subcaves Hacker-Mutant | -8/Materials Resources | -11 -10 -10 -8 ----------- Run | Yrd Mat Sub Mat Matter Collected 640 | 247 79 106 208 Remotely . | . . . . Salvage Created 565 | . 29 81 455 Parts 37 | . 4 5 28 Haulers Intercepted . | . . . . Recyclers Shooed . | . . . . Parts Field Recycled . | . . . . Retrieved Matter . | . . . . Parts Self-Destructed . | . . . . Prevented . | . . . . Kills | -11 -10 -10 -8 ------- Run | Yrd Mat Sub Mat Combat Hostiles Destroyed 9 | . . 1 8 Guns 8 | . . 1 7 Classes Destroyed 7 | . 1 2 4 Tunneler 1 | . 1 . . Watcher 1 | . . . 1 Grunt 2 | . . . 2 Sentry 5 | . . . 5 Hunter 1 | . . . 1 Artisan 1 | . . 1 . Subdweller 1 | . . 1 . Best Kill Streak 4 | . 1 1 4 Combat Bots Only 4 | . . 1 4 Max Kills in Single Turn 1 | . 1 1 1 Gunslinging . | . . . . Exploded . | . . . . Melee . | . . . . Uniques/NPCs Destroyed . | . . . . Combat | -11 -10 -10 -8 -------- Run | Yrd Mat Sub Mat Hostile Shots Fired 189 | . . 12 177 Missed 62 | . . 7 55 Hits 127 | . . 5 122 Projectile 127 | . . 5 122 Critical Strikes 5 | . . . 5 Actively Blocked 2 | . . . 2 Damage Taken 1174 | . . 64 1110 Core 557 | . . . 557 Absorbed by Shields . | . . . . Redirected to Shielding 101 | . . 8 93 Ignored by Resistances 704 | . . 36 668 Core Remaining (%) 100 | 100 . 100 . Volleys Fired 48 | . 3 9 36 Largest 2 | . 2 2 2 Hottest 85 | . 40 40 85 Shots Fired 86 | . 6 18 62 Gun 86 | . 6 18 62 Cannon . | . . . . Launcher . | . . . . Special . | . . . . Kinetic 66 | . 6 18 42 Thermal 10 | . . . 10 Explosive . | . . . . Electromagnetic 10 | . . . 10 Robot Hit Streak 38 | . 4 20 38 Robot Miss Streak 2 | . 2 . 1 Penetration Max . | . . . . Secondary Targets . | . . . . Shots Hit Robots 75 | . 4 16 55 Core Hits 27 | . 2 4 21 Critical Kills . | . . . . Critical Parts Destroyed . | . . . . Critical Strikes . | . . . . Melee Attacks . | . . . . Impact . | . . . . Slashing . | . . . . Piercing . | . . . . Sneak Attacks . | . . . . Combat Hostiles . | . . . . Follow-up Attacks . | . . . . Damage Inflicted 859 | . 29 189 641 Guns 859 | . 29 189 641 Cannons . | . . . . Explosions . | . . . . Melee . | . . . . Ramming . | . . . . Kinetic 571 | . 29 189 353 Thermal 137 | . . . 137 Explosive . | . . . . Electromagnetic 151 | . . . 151 Impact . | . . . . Slashing . | . . . . Piercing . | . . . . Highest Corruption . | . . . . Average Corruption . | . . . . Corruption Purged . | . . . . Corruption Blocked . | . . . . Overload Shots . | . . . . Overflow Damage . | . . . . Projectiles . | . . . . Explosions . | . . . . Melee . | . . . . Knockbacks . | . . . . Impact . | . . . . Kinetic . | . . . . Secondary . | . . . . Self-Inflicted Damage . | . . . . Shots . | . . . . Rammed . | . . . . Targets Rammed . | . . . . Kicked . | . . . . Crushed . | . . . . Highest Temperature 125 | . 8 . 125 Average Temperature 39 | . 5 . 41 Received Heat Transfer 735 | . . 6 729 Siege Activations . | . . . . Martial Activations . | . . . . Shielding Activations . | . . . . Robots Disrupted . | . . . . Combat Hostiles . | . . . . Robots Corrupted 1 | . . . 1 Combat Hostiles 1 | . . . 1 Parts Fried 1 | . . . 1 Impact Corruptions . | . . . . Robots Melted . | . . . . Combat Hostiles . | . . . . Parts Melted . | . . . . Heat Transferred 333 | . . . 333 Parts Sabotaged . | . . . . Parts Stolen . | . . . . Parts Stripped . | . . . . Power Chain Reactions . | . . . . Alert | -11 -10 -10 -8 ------- Run | Yrd Mat Sub Mat Maximum Alert Level . | . . . . Low Security (%) 100 | 100 100 . 100 Level 1 . | . . . . Level 2 . | . . . . Level 3 . | . . . . Level 4 . | . . . . Level 5 . | . . . . High Security . | . . . . Max Security . | . . . . Peak Influence 95 | . 7 . 95 Initial . | . . . . Average 15 | . . . 30 Influence Increases 309 | . 12 . 297 Destroy 0b10 Robot/C 160 | . . . 160 Destroy 0b10 Robot/NC 10 | . 5 . 5 Destroy Leader 72 | . . . 72 Successful Hack 7 | . 7 . . Lose Combat Pursuer 60 | . . . 60 Influence Decreases 309 | . 7 5 297 Entered New Map 4 | . . 4 . Time Decay 225 | . 7 1 217 Lost Part 80 | . . . 80 Squads Dispatched 2 | . . . 2 Investigation 1 | . . . 1 Extermination . | . . . . Reinforcement 1 | . . . 1 Assault . | . . . . Garrison . | . . . . Intercept . | . . . . Searches Triggered . | . . . . Construction Impeded . | . . . . Haulers Reinforced . | . . . . Active Scanning Responses . | . . . . Cargo Convoy Interrupts . | . . . . Stealth | -11 -10 -10 -8 --------- Run | Yrd Mat Sub Mat Distress Signals 3 | . 1 . 2 Communications Jammed . | . . . . Distress Signals . | . . . . Times Spotted 35 | . 5 8 22 Peak Tracking Total 7 | . 5 2 7 Tactical Retreats 3 | . . 1 2 Traps | -11 -10 -10 -8 ------- Run | Yrd Mat Sub Mat Traps Triggered . | . . . . Indirectly . | . . . . Trap Hack Attempts . | . . . . Triggered . | . . . . Disarmed . | . . . . Reprogrammed . | . . . . Reused . | . . . . Traps Extracted . | . . . . Installed . | . . . . Triggered . | . . . . Machines | -11 -10 -10 -8 ---------- Run | Yrd Mat Sub Mat Machines Disabled . | . . . . Max in Single Turn . | . . . . Machines Repaired . | . . . . Machines Dismantled . | . . . . Machines Sabotaged . | . . . . Overloaded Fab Kills . | . . . . Hacking | -11 -10 -10 -8 --------- Run | Yrd Mat Sub Mat Machines Accessed 6 | . 2 3 1 Terminals 3 | . 2 . 1 Fabricators . | . . . . Repair Stations . | . . . . Recycling Units . | . . . . Scanalyzers . | . . . . Garrison Access . | . . . . Total Hacks 21 | . 10 7 4 Successful 16 | . 6 7 3 Failed 5 | . 4 . 1 Catastrophic 1 | . 1 . . Database Lockouts . | . . . . Manual . | . . . . Terminals 14 | . 10 . 4 Fabricators . | . . . . Repair Stations . | . . . . Recycling Units . | . . . . Scanalyzers . | . . . . Garrison Access . | . . . . Terminal Hacks 16 | . 6 7 3 Record 11 | . 5 5 1 Open Door 1 | . . 1 . Emergency Access Points 1 | . 1 . . Alert Level 1 | . . . 1 Zone Layout 1 | . . . 1 Release Object 1 | . . 1 . Fabricator Hacks . | . . . . Repair Station Hacks . | . . . . Recycling Unit Hacks . | . . . . Scanalyzer . | . . . . Garrison Access Hacks . | . . . . Unauthorized Hacks . | . . . . Terminals . | . . . . Fabricators . | . . . . Repair Stations . | . . . . Recycling Units . | . . . . Scanalyzers . | . . . . Garrison Access . | . . . . Data Cores Recovered . | . . . . Used . | . . . . Hacking Detections 3 | . 2 . 1 Full Trace Events 2 | . 1 . 1 Feedback Events . | . . . . Feedback Blocked . | . . . . Robot Schematics Acquired . | . . . . Robots Built . | . . . . Authchips . | . . . . Time . | . . . . Total Robot Build Rating . | . . . . Part Schematics Acquired . | . . . . Parts Built . | . . . . Authchips . | . . . . Time . | . . . . Total Part Build Rating . | . . . . Parts Repaired . | . . . . Time . | . . . . Parts Recycled . | . . . . Recycled Matter . | . . . . Retrieved Matter . | . . . . Retrieved Components . | . . . . Parts Scanalyzed . | . . . . Part Schematics Acquired . | . . . . Parts Damaged . | . . . . Bothacking | -11 -10 -10 -8 ------------ Run | Yrd Mat Sub Mat Used RIF Installer . | . . . . Robots Hacked . | . . . . Non-combat . | . . . . Combat . | . . . . Robot Hacks Applied . | . . . . Relay Couplers Released . | . . . . Fabnet Peak Effective % . | . . . . Robots Rewired . | . . . . Allies Hacked . | . . . . Hacks Repelled . | . . . . Allies | -11 -10 -10 -8 -------- Run | Yrd Mat Sub Mat Total Allies . | . . . . Largest Group . | . . . . Highest-Rated Group . | . . . . Highest-Rated Ally . | . . . . Total Orders . | . . . . Ally Attacks . | . . . . Total Damage . | . . . . Kills . | . . . . Allies Corrupted . | . . . . Allies Melted . | . . . . Intel | -11 -10 -10 -8 ------- Run | Yrd Mat Sub Mat Active Infowar (turns) . | . . . . Robot Analysis Total . | . . . . Derelict Logs Recovered 1 | . . 1 . Drone Launches . | . . . . Drone Recoveries . | . . . . Exploration | -11 -10 -10 -8 ------------- Run | Yrd Mat Sub Mat Turns Passed 1028 | 111 252 303 362 Spaces Moved 930 | 55 200 454 221 Core 6 | 5 . . 1 Treads . | . . . . Legs 105 | 50 37 . 18 Wheels . | . . . . Hover . | . . . . Flight 819 | . 163 454 202 Fastest Speed 32 | 50 37 37 32 Average Speed 50 | 113 52 37 61 Slowest Speed 300 | 120 120 117 300 Overloaded Moves . | . . . . Propulsion Burnouts . | . . . . Robots Hopped 1 | . . . 1 Potential Cave-ins . | . . . . Cave-ins Triggered . | . . . . Exploration Rate (%) 21 | 4 37 23 21 Regions Visited 3 Branch Regions 1 Pre-discovered Areas 1 | . . 1 . Known Exits Taken 3 | 1 1 1 . Unknown Exits Taken . | . . . . Scrap Searched . | . . . . Spaces Dug . | . . . . Terrain Destroyed . | . . . . Melee . | . . . . Projectile . | . . . . AOE . | . . . . Terrain Rammed . | . . . . Walls Destroyed . | . . . . Machines Disabled . | . . . . Actions | -11 -10 -10 -8 --------- Run | Yrd Mat Sub Mat Total 1411 | 103 343 573 392 Wait 351 | 31 126 88 106 Move 925 | 54 199 453 219 Hop 1 | . . . 1 Pick Up 28 | 11 5 7 5 Fast Attach 4 | . 1 . 3 Attach 26 | 7 4 4 11 Detach 7 | . 1 . 6 Swap 4 | . . 3 1 Drop 16 | . 4 8 4 Fire 48 | . 3 9 36 Melee . | . . . . Ram . | . . . . Kick . | . . . . Crush . | . . . . Escape Stasis . | . . . . Rewire . | . . . . Trap . | . . . . Miscellaneous 1 | . . 1 . Route ------- -11/Scrapyard -10/Materials (discovered 2 exits: *Min / *Sub) -10/Subcaves -8/Materials History --------- Turn | Location | Event 37 | -11/Scrapyard | Identified exit to Materials 37 | -11/Scrapyard | Discovered exit to Materials (range 13) 112 | -11/Scrapyard | Entered Materials 112 | -10/Materials | Evolved 1 slot: Utility x1 113 | -10/Materials | Met a group of wandering Federalists 257 | -10/Materials | Identified exit to Mines 257 | -10/Materials | Discovered exit to Mines (range 11) 302 | -10/Materials | Identified exit to Subcaves 302 | -10/Materials | Discovered exit to Subcaves (range 11) 315 | -10/Materials | Build established: Hacker-Mutant 364 | -10/Materials | Entered Subcaves 364 | -10/Subcaves | Accompanied by 1 ally 365 | -10/Subcaves | Shifting Twisted Machinery released Sub. Shrapnel Launcher 365 | -10/Subcaves | Continued accompanying wandering Federalists (4) 365 | -10/Subcaves | Approached by a straggling Scientist 425 | -10/Subcaves | Learned location of Zion (-6) 481 | -10/Subcaves | Lost 3 allies 543 | -10/Subcaves | Released subatomizers from SUBCON Basin 612 | -10/Subcaves | Visited Clippyterm 613 | -10/Subcaves | Learned Research machine intel 613 | -10/Subcaves | Learned Factory stockpile data 641 | -10/Subcaves | Identified exit to Materials 641 | -10/Subcaves | Discovered exit to Materials (range 6) 649 | -10/Subcaves | Shifting Twisted Machinery released Mak. Light Armor Plating 667 | -10/Subcaves | Entered Materials 667 | -8/Materials | Evolved 4 slots: Power x1, Propulsion x2, Utility x1 1014 | -8/Materials | Core integrity fell below 50% 1024 | -8/Materials | Core integrity fell below 20% 1029 | -8/Materials | Destroyed by G-47 Trooper with Particle Gun Last Messages --------------- 00936_ Particle Gun destroyed. 00941_ Lgt. Assault Rifle destroyed. 00960_ Atomic Centrifuge disabled. 00963_ Flight Unit destroyed. 00966_ Y-45 Defender system terminally corrupted. 00966_ Heat Sink fried. 00971_ VTOL Module destroyed. 00990_ Flight Unit destroyed. 00990_ R-06 Scavenger collects Corrupted Hvy. Assault Rifle. 00991_ R-06 Scavenger collects Corrupted Lgt. Treads. 00993_ R-06 Scavenger collects Corrupted Heat Sink. 01001_ Power Shielding destroyed. 01001_ Imp. Ion Engine destroyed. 01007_ Shock Rifle destroyed. 01013_ Core Shielding destroyed. 01017_ Critical hit (Burn: +37). Map ----- +----------------------------------------------------+ | | | | | | | | | | | | | | | | | | | | | | | | | | | | | | | | | | | | | | | | | | | | | | | ####??????#########################??????????????? | | #??????# # ! #??????????????? | | "" #?????## ! # @ g #??????????????? | | "" #?????# # ggu #??????????????? | | "" #??????# #gY""" """ [#??????????????? | | #??????# # """ """ #??????????????? | | #??????# # " """ #??????????????? | | #+######??# # #??????????????? | | #########+########+#########??????????????? | | ##### % #?????????????????????? | | ##### #?????????????????????? | | ????# """ #?????????????????????? | | ?#### """ ##### [ #?????????????????????? | | ?# """ ##???## ###?????????????????????? | | ?# """ #?????# #???????????????????????? | | ##### """ "" #?????+ ???????????????????????? | | # Y" #?????# ??????????????????????? | | """ + "" #?????# ?????????????????????? | | """ # #?????+ ????????????????????? | | """ # #?????# ???????????????????? | | """ #####+####+#######?# ??????????????????? | | """ ## # #?? ? #?????????????????? | | ## # #?? ???????????????????? | | ## # #?? ? ???????????????????? | | ###### # ! #?? ???????????????????????? | | ?????# # =%= #???????????????????????????? | | ?????# # * #???????????????????????????? | +----------------------------------------------------+ Best States ------------- Heat Dissipation 31 Energy Generation 17 Energy Capacity 290 Matter Stores 300 Matter Capacity 300 Sight Range 16 Terrain Scan Density 10 Armor Coverage 150 Resistance: KI 35 Resistance: TH 35 Resistance: EX 35 Resistance: EM 35 Resistance: I 35 Resistance: S 35 Resistance: P 35 Core Shielding 20 Power Shielding 33 Evasion (%) 63 Targeting Accuracy 5 Offensive Hacking 20 Item Schematics ----------------- None Robot Schematics ------------------ None Fabricated ------------ Nothing Repaired ---------- Nothing Alien Tech Used ----------------- None Achievements -------------- Librarian Challenges ------------ None Game ------ Seed FissionTiamatExtrapolator Manual? 0 Play Time 00:42:01 Cumulative 5.2 hours Start 2025.08.01 @ 21:19:10 End 2025.08.01 @ 22:05:21 Sessions 1 Manual Loads 0 Difficulty Explorer Special Mode None Game No. 6 Rogue 1 Adventurer 0 Explorer 5 Win Type - Total 0 Types 0/0/0/0/0/0/0/0/0/0 Lore% 3 Gallery% 10 Achievement% 13 Wizard Run 0 Options --------- Layout 1 ASCII 0 Keyboard 0 Movement Mouse Keybinds 0 Fullscreen 1 Font 32/SmallcapsGlow Map View 50x35 Zoom Use 0% Tactical HUD 1 Map Filters NONE Filters NONE Steam 1 RUN: 434ddbbf-9ee7-47d5-a175-0be88aec0e1d